Workbook

Sheet Angaben
A1: Lightline 70
A8: Bitte wählen Sie die Leuchte aus, zu der der Ausschreibungstext gewünscht ist
A10: Leuchtentyp auswählen: | B10: Lightline 70 Anbau opal
A12: Länge eingeben: | B12: 1450 | C12: mm
B14: =IF(B10=Tabelle2!A4,(Angaben!B12-35)/280,IF(Angaben!B10=Tabelle2!A8,(Angaben!B12-35)/280,(Angaben!B12-25)/280)) -> 5.089285714 | C14: =ROUNDDOWN(B14,0) -> 5 | D14: =ROUNDUP(B14,0) -> 6
A16: Mögliche Längen: | B16: =IF(B10=Tabelle2!A4,Angaben!C14*280+25,IF(Angaben!B10=Tabelle2!A8,Angaben!C14*280+25,IF(Angaben!B10=Tabelle2!A3,Angaben!C14*280+50,IF(Angaben!B10=Tabelle2!A7,Angaben!C14*280+50,Angaben!C14*280+15)))) -> 1415 | C16: mm * | D16: 1
B17: =IF(B10=Tabelle2!A4,Angaben!D14*280+25,IF(Angaben!B10=Tabelle2!A8,Angaben!D14*280+25,IF(Angaben!B10=Tabelle2!A3,Angaben!D14*280+50,IF(Angaben!B10=Tabelle2!A7,Angaben!D14*280+50,Angaben!D14*280+15)))) -> 1695 | C17: mm * | D17: FALSE
B19: *BITTE LÄNGE AUSWÄHLEN
B21: Bitte gewünschten Text öffnen
A23: Bei Fragen oder fehlenden Ausschreibungstexten schreiben Sie uns bitte an: | D23: info@kotzolt.de

Sheet Lightline 70 A opal (hidden)
A6: Ausschreibungstext
A7: Lightline 70 Anbau opal
A9: Anbauleuchte mit LED | D9: =(F9-15)/280*1100 -> 5500 | E9: lm | F9: =IF(A7=Angaben!B10,IF(Angaben!D16=1,Angaben!B16,IF(Angaben!D16=2,Angaben!B17))) -> 1415 | G9: mm
A10: Leuchtenkörper aus Aluminiumprofil
A11: pulverbeschichtet in Weiß, Schwarz oder Titansilber
A12: Lichtaustritt mit Profil-Abdeckung opal diffus PMMA
A13: Einzelleuchte. Treiber in Leuchtenkörper integriert.
A14: Nach Ökodesign Richtline sind alle Komponenten einzeln austauschbar
A15: LED Module auf separater Trägerarmatur.
A17: Abmessung | C17: =F9 -> 1415 | D17: x 70 x 72 | E17: mm | F17: (L x B x H)
A18: Leuchtmittel | C18: LED-Lumenstrom | E18: =D9 -> 5500 | F18: lm
C19: Leuchten-Lumenstrom | E19: =ROUND(E18*0.658,0) -> 3619 | F19: lm
C20: Anschlussleistung ca. | E20: =E18/1100*6.8 -> 34 | F20: Watt
C21: Effizienz ca. 110lm/W
C22: Farbwiedergabeindex > 80 (optional > 90)
C23: Lebensdauer L80/B10/60000h
C24: Flickerfrei Pst < 0,5 - SVM < 0,5 und Zhaga konform
A25: Farbtemperatur: | C25: 4000 | D25: K | E25: (optional 3000 K)
A26: Betriebsgerät | C26: DALI dimmbar (optional schaltbar)
A27: Schutzart: | C27: IP 20
A28: Montageart: | C28: Deckenanbau
A30: Fabrikat | C30: Kotzolt
A31: Typ | C31: Lightline 70 A LED opal | E31: =D9 -> 5500 | F31: lm

Sheet Lightline 70 P opal (hidden)
A6: Ausschreibungstext
A7: Lightline 70 Pendel opal
A9: Pendelleuchte mit LED | D9: =(F9-15)/280*1100 -> -58.92857143 | E9: lm | F9: =IF(A7=Angaben!B10,IF(Angaben!D16=1,Angaben!B16,IF(Angaben!D16=2,Angaben!B17))) -> FALSE | G9: mm
A10: Leuchtenkörper aus Aluminiumprofil
A11: pulverbeschichtet in Weiß, Schwarz oder Titansilber
A12: Lichtaustritt mit Profil-Abdeckung opal diffus PMMA
A13: Einzelleuchte. Treiber in Leuchtenkörper integriert.
A14: inkl. Y-Abhängung mit Schnellabhänger, Stahlseile 1,0 Meter
A15: transparente Zuleitung 5x0,75mm² (schaltbar: 3x0,75mm²)
A16: und quadratischer Baldachin
A17: Nach Ökodesign Richtline sind alle Komponenten einzeln austauschbar
A18: LED Module auf separater Trägerarmatur.
A20: Abmessung | C20: =F9 -> FALSE | D20: x 70 x 72 | E20: mm | F20: (L x B x H)
A21: Leuchtmittel | C21: LED-Lumenstrom | E21: =D9 -> -58.92857143 | F21: lm
C22: Leuchten-Lumenstrom | E22: =ROUND(E21*0.658,0) -> -39 | F22: lm
C23: Anschlussleistung ca. | E23: =E21/1100*6.8 -> -0.3642857143 | F23: Watt
C24: Effizienz ca. 110lm/W
C25: Farbwiedergabeindex > 80 (optional > 90)
C26: Lebensdauer L80/B10/60000h
C27: Flickerfrei Pst < 0,5 - SVM < 0,5 und Zhaga konform
A28: Farbtemperatur: | C28: 4000 | D28: K | E28: (optional 3000 K)
A29: Betriebsgerät | C29: DALI dimmbar (optional schaltbar)
A30: Schutzart: | C30: IP 20
A31: Montageart: | C31: Pendelmontage
A33: Fabrikat | C33: Kotzolt
A34: Typ | C34: Lightline 70 P LED opal | E34: =D9 -> -58.92857143 | F34: lm

Sheet Lightline 70 P DID opal (hidden)
A6: Ausschreibungstext
A7: Lightline 70 Pendel DID opal
A9: Pendelleuchte mit LED | D9: =(F9-50)/280*2200 -> -392.8571429 | E9: lm | F9: =IF(A7=Angaben!B10,IF(Angaben!D16=1,Angaben!B16,IF(Angaben!D16=2,Angaben!B17))) -> FALSE | G9: mm
A10: Leuchtenkörper aus Aluminiumprofil
A11: pulverbeschichtet in Weiß, Schwarz oder Titansilber
A12: Lichtaustritt mit Profil-Abdeckung opal diffus PMMA
A13: Einzelleuchte. Treiber in Leuchtenkörper integriert.
A14: inkl. Stahlseile 1,0 Meter
A15: transparente Zuleitung 5x0,75mm² (schaltbar: 3x0,75mm²)
A16: und quadratischer Baldachin
A17: Nach Ökodesign Richtline sind alle Komponenten einzeln austauschbar
A18: LED Module auf separater Trägerarmatur.
A20: Abmessung | C20: =F9 -> FALSE | D20: x 70 x 72 | E20: mm | F20: (L x B x H)
A21: Leuchtmittel | C21: LED-Lumenstrom | E21: =D9 -> -392.8571429 | F21: lm
C22: Leuchten-Lumenstrom | E22: =ROUND(E21*0.814,0) -> -320 | F22: lm
C23: Anschlussleistung ca. | E23: =E21/1100*6.8 -> -2.428571429 | F23: Watt
C24: Effizienz ca. 138lm/W
C25: Farbwiedergabeindex > 80 (optional > 90)
C26: Lebensdauer L80/B10/60000h
C27: Flickerfrei Pst < 0,5 - SVM < 0,5 und Zhaga konform
A28: Farbtemperatur: | C28: 4000 | D28: K | E28: (optional 3000 K)
A29: Betriebsgerät | C29: DALI dimmbar (optional schaltbar)
A30: Schutzart: | C30: IP 20
A31: Montageart: | C31: Pendelmontage
A33: Fabrikat | C33: Kotzolt
A34: Typ | C34: Lightline 70 P DID LED opal | E34: =D9 -> -392.8571429 | F34: lm

Sheet Lightline 70 E opal (hidden)
A6: Ausschreibungstext
A7: Lightline 70 Einbau opal
A9: Einbauleuchte mit LED | D9: =(F9-25)/280*1100 -> -98.21428571 | E9: lm | F9: =IF(A7=Angaben!B10,IF(Angaben!D16=1,Angaben!B16,IF(Angaben!D16=2,Angaben!B17))) -> FALSE | G9: mm
A10: Leuchtenkörper aus Aluminiumprofil eloxiert,
A11: pulverbeschichtet in Weiß, Schwarz oder Titansilber
A12: Lichtaustritt mit Profil-Abdeckung opal diffus PMMA
A13: Einzelleuchte. Treiber in Leuchtenkörper integriert.
A14: Nach Ökodesign Richtline sind alle Komponenten einzeln austauschbar
A15: LED Module auf separater Trägerarmatur.
A17: Abmessung | C17: =F9 -> FALSE | D17: x 88 x 72 | E17: mm | F17: (L x B x H)
A18: Leuchtmittel | C18: LED-Lumenstrom | E18: =D9 -> -98.21428571 | F18: lm
C19: Leuchten-Lumenstrom | E19: =ROUND(E18*0.658,0) -> -65 | F19: lm
C20: Anschlussleistung ca. | E20: =E18/1100*6.8 -> -0.6071428571 | F20: Watt
C21: Effizienz ca. 110lm/W
C22: Farbwiedergabeindex > 80 (optional > 90)
C23: Lebensdauer L80/B10/60000h
C24: Flickerfrei Pst < 0,5 - SVM < 0,5 und Zhaga konform
A25: Farbtemperatur: | C25: 4000 | D25: K | E25: (optional 3000 K)
A26: Betriebsgerät | C26: DALI dimmbar (optional schaltbar)
A27: Schutzart: | C27: IP 20
A28: Montageart: | C28: Einbaumontage
A30: Fabrikat | C30: Kotzolt
A31: Typ | C31: Lightline 70 E LED opal | E31: =D9 -> -98.21428571 | F31: lm

Sheet Lightline 70 A MLO (hidden)
A6: Ausschreibungstext
A7: Lightline 70 Anbau MLO
A9: Anbauleuchte mit LED | D9: =(F9-15)/280*1100 -> -58.92857143 | E9: lm | F9: =IF(A7=Angaben!B10,IF(Angaben!D16=1,Angaben!B16,IF(Angaben!D16=2,Angaben!B17))) -> FALSE | G9: mm
A10: Leuchtenkörper aus Aluminiumprofil
A11: pulverbeschichtet in Weiß, Schwarz oder Titansilber
A12: Lichtaustritt mit Profil-Abdeckung MLO (Multi-Layer-Optik)
A13: Klare Abdeckung mit Mikroprismenscheibe und zusätzlicher Streuscheibe
A14: für eine blendfreie Lichtverteilung
A15: Einzelleuchte. Treiber in Leuchtenkörper integriert.
A16: Nach Ökodesign Richtline sind alle Komponenten einzeln austauschbar
A17: LED Module auf separater Trägerarmatur.
A19: Abmessung | C19: =F9 -> FALSE | D19: x 70 x 72 | E19: mm | F19: (L x B x H)
A20: Leuchtmittel | C20: LED-Lumenstrom | E20: =D9 -> -58.92857143 | F20: lm
C21: Leuchten-Lumenstrom | E21: =ROUND(E20*0.65,0) -> -38 | F21: lm
C22: Anschlussleistung ca. | E22: =E20/1100*6.8 -> -0.3642857143 | F22: Watt
C23: Effizienz ca. 108 lm/W
C24: Farbwiedergabeindex > 80 (optional > 90)
C25: Lebensdauer L80/B10/60000h
C26: Flickerfrei Pst < 0,5 - SVM < 0,5 und Zhaga konform
A27: Farbtemperatur: | C27: 4000 | D27: K | E27: (optional 3000 K)
A28: Betriebsgerät | C28: DALI dimmbar (optional schaltbar)
A29: Schutzart: | C29: IP 20
A30: Montageart: | C30: Deckenanbau
A32: Fabrikat | C32: Kotzolt
A33: Typ | C33: Lightline 70 A LED MLO | E33: =D9 -> -58.92857143 | F33: lm

Sheet Lightline 70 P MLO (hidden)
A6: Ausschreibungstext
A7: Lightline 70 Pendel MLO
A9: Pendelleuchte mit LED | D9: =(F9-15)/280*1100 -> -58.92857143 | E9: lm | F9: =IF(A7=Angaben!B10,IF(Angaben!D16=1,Angaben!B16,IF(Angaben!D16=2,Angaben!B17))) -> FALSE | G9: mm
A10: Leuchtenkörper aus Aluminiumprofil
A11: pulverbeschichtet in Weiß, Schwarz oder Titansilber
A12: Lichtaustritt mit Profil-Abdeckung MLO (Multi-Layer-Optik)
A13: Klare Abdeckung mit Mikroprismenscheibe und zusätzlicher Streuscheibe
A14: für eine blendfreie Lichtverteilung
A15: Einzelleuchte. Treiber in Leuchtenkörper integriert.
A16: inkl. Y-Abhängung mit Schnellabhänger, Stahlseile 1,0 Meter
A17: transparente Zuleitung 5x0,75mm² (schaltbar: 3x0,75mm²)
A18: und quadratischer Baldachin
A19: Nach Ökodesign Richtline sind alle Komponenten einzeln austauschbar
A20: LED Module auf separater Trägerarmatur.
A22: Abmessung | C22: =F9 -> FALSE | D22: x 70 x 72 | E22: mm | F22: (L x B x H)
A23: Leuchtmittel | C23: LED-Lumenstrom | E23: =D9 -> -58.92857143 | F23: lm
C24: Leuchten-Lumenstrom | E24: =ROUND(E23*0.65,0) -> -38 | F24: lm
C25: Anschlussleistung ca. | E25: =E23/1100*6.8 -> -0.3642857143 | F25: Watt
C26: Effizienz ca. 108 lm/W
C27: Farbwiedergabeindex > 80 (optional > 90)
C28: Lebensdauer L80/B10/60000h
C29: Flickerfrei Pst < 0,5 - SVM < 0,5 und Zhaga konform
A30: Farbtemperatur: | C30: 4000 | D30: K | E30: (optional 3000 K)
A31: Betriebsgerät | C31: DALI dimmbar (optional schaltbar)
A32: Schutzart: | C32: IP 20
A33: Montageart: | C33: Pendelmontage
A35: Fabrikat | C35: Kotzolt
A36: Typ | C36: Lightline 70 P LED MLO | E36: =D9 -> -58.92857143 | F36: lm

Sheet Lightline 70 P DID MLO (hidden)
A6: Ausschreibungstext
A7: Lightline 70 Pendel DID MLO
A9: Pendelleuchte mit LED | D9: =(F9-50)/280*2200 -> -392.8571429 | E9: lm | F9: =IF(A7=Angaben!B10,IF(Angaben!D16=1,Angaben!B16,IF(Angaben!D16=2,Angaben!B17))) -> FALSE | G9: mm
A10: Leuchtenkörper aus Aluminiumprofil
A11: pulverbeschichtet in Weiß, Schwarz oder Titansilber
A12: direkter Lichtaustritt mit Profil-Abdeckung MLO (Multi-Layer-Optik)
A13: Klare Abdeckung mit Mikroprismenscheibe und zusätzlicher Streuscheibe
A14: für eine blendfreie Lichtverteilung
A15: indirekter Lichtaustritt mit PC-Scheibe klar
A16: Einzelleuchte. Treiber in Leuchtenkörper integriert.
A17: inkl. Stahlseile 1,0 Meter
A18: transparente Zuleitung 5x0,75mm² (schaltbar: 3x0,75mm²)
A19: und quadratischer Baldachin
A20: Nach Ökodesign Richtline sind alle Komponenten einzeln austauschbar
A21: LED Module auf separater Trägerarmatur.
A23: Abmessung: | C23: =F9 -> FALSE | D23: x 70 x 72 | E23: mm | F23: (L x B x H)
A24: Leuchtmittel: | C24: LED-Lumenstrom | E24: =D9 -> -392.8571429 | F24: lm
C25: Leuchten-Lumenstrom | E25: =ROUND(E24*0.811,0) -> -319 | F25: lm
C26: Bei Lichtverteilung direkt 30% / indirekt 70%
C27: Anschlussleistung ca. | E27: =E24/1100*6.8 -> -2.428571429 | F27: Watt
C28: Effizienz ca. 122 lm/W
C29: Farbwiedergabeindex > 80 (optional > 90)
C30: Lebensdauer L80/B10/60000h
C31: Flickerfrei Pst < 0,5 - SVM < 0,5 und Zhaga konform
A32: Lichtverteilung: | C32: direkt 30% / indirekt 70% (ist frei wählbar)
A33: Farbtemperatur: | C33: 4000 | D33: K | E33: (optional 3000 K)
A34: Betriebsgerät | C34: DALI dimmbar (optional schaltbar)
A35: Schutzart: | C35: IP 20
A36: Montageart: | C36: Pendelmontage
A38: Fabrikat | C38: Kotzolt
A39: Typ | C39: Lightline 70 P LED MLO | E39: =D9 -> -392.8571429 | F39: lm

Sheet Lightline 70 E MLO (hidden)
A6: Ausschreibungstext
A7: Lightline 70 Einbau MLO
A9: Einbauleuchte mit LED | D9: =(F9-25)/280*1100 -> -98.21428571 | E9: lm | F9: =IF(A7=Angaben!B10,IF(Angaben!D16=1,Angaben!B16,IF(Angaben!D16=2,Angaben!B17))) -> FALSE | G9: mm
A10: Leuchtenkörper aus Aluminiumprofil
A11: pulverbeschichtet in Weiß, Schwarz oder Titansilber
A12: Lichtaustritt mit Profil-Abdeckung MLO (Multi-Layer-Optik)
A13: Klare Abdeckung mit Mikroprismenscheibe und zusätzlicher Streuscheibe
A14: für eine blendfreie Lichtverteilung
A15: Einzelleuchte. Treiber in Leuchtenkörper integriert.
A16: Nach Ökodesign Richtline sind alle Komponenten einzeln austauschbar
A17: LED Module auf separater Trägerarmatur.
A19: Abmessung | C19: =F9 -> FALSE | D19: x 88 x 72 | E19: mm | F19: (L x B x H)
A20: Leuchtmittel | C20: LED-Lumenstrom | E20: =D9 -> -98.21428571 | F20: lm
C21: Leuchten-Lumenstrom | E21: =ROUND(E20*0.65,0) -> -64 | F21: lm
C22: Anschlussleistung ca. | E22: =E20/1100*6.8 -> -0.6071428571 | F22: Watt
C23: Effizienz ca. 108 lm/W
C24: Farbwiedergabeindex > 80 (optional > 90)
C25: Lebensdauer L80/B10/60000h
C26: Flickerfrei Pst < 0,5 - SVM < 0,5 und Zhaga konform
A27: Farbtemperatur: | C27: 4000 | D27: K | E27: (optional 3000 K)
A28: Betriebsgerät | C28: DALI dimmbar (optional schaltbar)
A29: Schutzart: | C29: IP 20
A30: Montageart: | C30: Einbaumontage
A32: Fabrikat | C32: Kotzolt
A33: Typ | C33: Lightline 70 E LED MLO | E33: =D9 -> -98.21428571 | F33: lm

Sheet Tabelle2 (hidden)
A1: Lightline 70 Anbau opal
A2: Lightline 70 Pendel opal
A3: Lightline 70 Pendel DID opal
A4: Lightline 70 Einbau opal
A5: Lightline 70 Anbau MLO
A6: Lightline 70 Pendel MLO
A7: Lightline 70 Pendel DID MLO
A8: Lightline 70 Einbau MLO
